bitfinex/quotes_SOLUSD_20250414
["timestamp","ask_amount","ask_price","bid_price","bid_amount"]
[1744630330402,45.15028344,133.0,132.96,11.63108344]
[1744630330600,11.63108344,133.01,132.96,11.63108344]
[1744630331651,11.63108344,133.0,132.96,11.63108344]
[1744630332314,19.14998344,133.0,132.96,11.63108344]
[1744630332618,19.14998344,133.0,132.95,11.91540658]
[1744630332804,19.14998344,133.0,132.95,19.43680658]
[1744630333007,0.063,133.03,132.99,12.05756815]
[1744630333233,0.063,133.03,133.0,11.63108344]
[1744630333639,0.063,133.03,132.99,94.51540658]
[1744630333815,11.69408344,133.03,132.99,82.6]
[1744630334017,11.63108344,133.02,132.99,82.6]
[1744630334516,19.14888344,133.02,132.99,82.6]
[1744630335051,7.5178,133.02,132.99,82.6]
[1744630335340,11.69408344,133.03,132.99,94.23108344]
[1744630335341,7.5802,133.03,132.99,94.23108344]
[1744630336812,19.21128344,133.03,132.99,82.6]
[1744630337413,19.21128344,133.03,132.98,11.63108344]
[1744630338238,0.063,133.03,132.99,11.91540658]
[1744630338609,0.063,133.03,132.98,7.5199]
[1744630338610,11.69408344,133.03,132.95,82.6]
[1744630338836,11.63108344,132.99,132.94,11.63108344]
[1744630339046,11.63108344,132.99,132.93,90.61766157]
[1744630339047,11.63108344,132.97,132.93,90.4755]
[1744630339621,7.5187,133.0,132.95,11.63108344]
[1744630339837,19.14978344,133.0,132.96,11.63108344]
[1744630340038,11.63108344,133.02,132.97,11.63108344]
[1744630340247,0.063,133.03,132.98,11.91540658]
[1744630340248,19.21128344,133.03,132.98,11.91540658]
[1744630341139,11.63108344,133.02,132.98,11.91540658]
[1744630342049,11.63108344,133.02,132.98,0.28432314]
[1744630342228,7.5802,133.03,132.98,7.80412314]
[1744630342551,11.63108344,133.02,132.98,0.28432314]
[1744630343148,19.14878344,133.02,132.98,0.28432314]
[1744630343637,11.63108344,133.01,132.96,11.63108344]
[1744630343839,11.63108344,132.97,132.91,11.63108344]
[1744630344044,11.63108344,132.96,132.92,0.08]
[1744630344737,11.63108344,132.96,132.89,16.65323219]
[1744630345249,11.63108344,132.91,132.89,16.65323219]
[1744630345624,11.63108344,132.92,132.89,16.65323219]
[1744630345943,11.63108344,132.91,132.87,7.81032314]
[1744630346245,11.63108344,132.92,132.87,19.44140658]
[1744630346626,11.63108344,132.93,132.88,11.63108344]
[1744630346947,19.15378344,132.93,132.88,19.15628344]
[1744630347125,26.11430927,132.93,132.88,26.11680927]
[1744630347326,18.59160927,132.94,132.89,18.87593241]
[1744630348344,18.59160927,132.93,132.89,18.87593241]
[1744630348541,18.59160927,132.93,132.89,26.40073241]
[1744630348847,26.11440927,132.93,132.89,7.80912314]
[1744630349145,18.59160927,132.92,132.89,0.28432314]
[1744630349536,7.5228,132.93,132.89,0.28432314]
[1744630349724,18.59160927,132.92,132.89,0.28432314]
[1744630350246,18.59160927,132.92,132.88,0.28432314]
[1744630350633,18.59160927,132.92,132.88,7.80982314]
[1744630351033,18.59160927,132.92,132.88,26.40143241]
[1744630351231,26.11440927,132.93,132.88,26.40143241]
[1744630351735,18.59160927,132.93,132.88,26.40143241]
[1744630351934,18.59160927,132.96,132.91,0.28432314]
[1744630351935,18.59160927,132.95,132.91,0.28432314]
[1744630352748,18.59160927,132.94,132.91,0.28432314]
[1744630352947,8.42,132.98,132.91,0.28432314]
[1744630352948,18.59160927,132.95,132.91,0.28432314]
[1744630353251,18.59160927,132.96,132.91,26.39953241]
[1744630353426,18.59160927,132.94,132.91,0.28432314]
[1744630354855,7.5204,132.97,132.89,0.14216157]
[1744630354856,18.59160927,132.93,132.89,0.14216157]
[1744630355032,26.11460927,132.93,132.89,7.95138471]
[1744630355232,18.59160927,132.93,132.89,26.54299398]
[1744630355752,18.59160927,132.96,132.89,26.54299398]
[1744630355753,18.59160927,132.94,132.89,26.54299398]
[1744630356553,18.59160927,132.93,132.89,26.54299398]
[1744630357452,18.59160927,132.92,132.88,0.28432314]
[1744630357640,18.59160927,132.92,132.87,18.59160927]
[1744630357841,18.59160927,132.92,132.88,0.28432314]
[1744630358655,18.59160927,132.89,132.85,9.1299]
[1744630359238,18.59160927,132.88,132.85,9.1299]
[1744630359538,18.59160927,132.89,132.85,9.1299]
[1744630359750,8.42,132.93,132.87,0.14216157]
[1744630359934,18.59160927,132.92,132.88,0.28432314]
[1744630360260,27.01160927,132.93,132.88,18.87593241]
[1744630360629,8.42,132.93,132.89,18.59160927]
[1744630360836,26.11410927,132.94,132.89,18.59160927]
[1744630361233,27.01160927,132.97,132.92,18.59160927]
[1744630361859,34.53250927,132.97,132.92,26.11460927]
[1744630362061,18.59160927,132.95,132.92,7.523]
[1744630362264,18.59160927,132.96,132.92,26.11460927]
[1744630363146,44.59160927,132.98,132.93,19.01809398]
[1744630363564,18.59160927,132.97,132.93,0.28432314]
[1744630364559,18.59160927,132.95,132.92,1.6052]
[1744630364774,18.59160927,132.94,132.9,13.96286157]
[1744630365091,165.45914886,133.0,132.9,13.96286157]
[1744630365092,18.59160927,132.95,132.9,32.55447084]
[1744630365675,18.59160927,132.95,132.9,32.41230927]
[1744630365869,18.59160927,132.94,132.9,13.8207]
[1744630366477,18.59160927,132.95,132.9,32.41230927]
[1744630366975,18.59160927,132.94,132.9,13.8207]
[1744630367474,18.59160927,132.95,132.9,32.41230927]
[1744630367662,18.59160927,132.94,132.9,0.28432314]
[1744630368062,18.59160927,132.91,132.87,7.5259]
[1744630368272,18.59160927,132.9,132.85,20.17450927]
[1744630368480,18.59160927,132.89,132.85,9.11]
[1744630369055,18.59160927,132.89,132.86,2.78657893]
[1744630369465,18.59160927,132.89,132.86,10.31327893]
[1744630369755,18.59160927,132.89,132.86,7.5267]
[1744630370385,18.59160927,132.89,132.85,9.1099]
[1744630371597,26.3296,132.93,132.85,27.70150927]
[1744630371764,18.59160927,132.9,132.85,27.70150927]
[1744630372695,18.59160927,132.89,132.85,9.1099]
[1744630373692,18.59160927,132.88,132.85,1.5829]
[1744630373859,18.59160927,132.89,132.85,0.28432314]
[1744630374773,18.59160927,132.89,132.86,7.5267]
[1744630375199,11.62532141,132.89,132.86,7.5267]
[1744630375490,37.62532141,132.93,132.88,11.62532141]
[1744630375685,26.0,132.93,132.88,11.62532141]
[1744630375865,11.62532141,132.93,132.88,11.62532141]
[1744630376191,37.62532141,132.93,132.88,11.62532141]
[1744630376357,11.62532141,132.94,132.89,19.43464455]
[1744630376560,11.62532141,132.94,132.9,11.62532141]
[1744630377194,18.58649851,132.94,132.9,18.58649851]
[1744630377370,18.58649851,132.95,132.9,18.58649851]
[1744630377573,34.50769851,132.96,132.91,18.58649851]
[1744630378373,34.50769851,132.96,132.92,7.5233]
[1744630378691,26.98649851,132.96,132.92,26.10979851]
[1744630378863,18.58649851,132.97,132.93,0.28432314]
[1744630379059,18.58649851,132.98,132.94,18.58649851]
[1744630379388,34.53529851,133.0,132.95,18.58649851]
[1744630379867,27.01649851,133.0,132.95,18.58649851]
[1744630380481,8.43,133.0,132.96,7.521]
[1744630380688,0.03,133.0,132.97,18.87082165]
[1744630380876,0.03,133.0,132.97,0.28432314]
[1744630382078,18.58649851,132.98,132.95,82.6]
[1744630382678,26.10589851,132.99,132.95,82.6]
[1744630383680,0.03,133.0,132.95,90.1216]
[1744630383865,0.03,133.0,132.96,18.87082165]
[1744630384479,0.03,133.0,132.97,7.5204]
[1744630384877,18.61649851,133.0,132.96,7.80512314]
[1744630385194,0.03,133.0,132.96,26.39162165]
[1744630386386,18.61649851,133.0,132.96,7.80512314]
[1744630386582,18.61649851,133.0,132.94,18.8043]
[1744630386583,26.10589851,132.99,132.94,18.58649851]
[1744630386777,18.58649851,132.99,132.94,26.10839851]
[1744630386986,18.58649851,132.99,132.95,2.78854826]
[1744630387297,18.58649851,132.97,132.95,2.78854826]
[1744630387773,18.58649851,132.97,132.93,110.45996008]
[1744630388096,18.58649851,132.97,132.93,91.87346157]
[1744630388267,18.58649851,132.97,132.93,110.45996008]
[1744630388781,18.58649851,132.96,132.93,1.6088]
[1744630388987,18.58649851,132.97,132.93,9.1315]
[1744630389602,0.03,133.0,132.96,0.28432314]
[1744630389603,18.61649851,133.0,132.96,0.28432314]
[1744630389775,0.03,133.0,132.97,18.58649851]
[1744630390283,0.03,133.0,132.96,18.87082165]
[1744630390479,0.03,133.0,132.97,18.58649851]
[1744630390686,0.03,133.0,132.98,7.80422314]
[1744630391191,0.03,133.0,132.98,26.39072165]
[1744630391983,0.03,133.0,132.99,0.28432314]
[1744630392396,18.61649851,133.0,132.94,7.522]
[1744630392607,18.61649851,133.0,132.93,9.1312]
[1744630392608,0.03,133.0,132.93,9.1312]
[1744630392979,0.03,133.0,132.96,18.72866008]
[1744630393299,0.03,133.0,132.97,18.58649851]
[1744630394087,0.03,133.0,132.96,19.01298322]
[1744630394296,26.13529851,133.0,132.96,18.87082165]
[1744630394495,18.58649851,132.99,132.96,0.28432314]
[1744630394701,0.03,133.0,132.96,26.39162165]
[1744630394889,0.03,133.0,132.98,0.28432314]
[1744630395199,0.03,133.0,132.98,18.87082165]
[1744630396686,0.03,133.0,132.98,26.39022165]
[1744630398080,0.03,133.0,132.98,26.24806008]
[1744630398706,0.03,133.0,132.98,7.66156157]
[1744630398912,18.61649851,133.0,132.97,7.5202]
[1744630399119,0.03,133.0,132.97,7.5202]
[1744630401226,0.03,133.0,132.98,0.28432314]
[1744630401817,0.03,133.0,132.96,7.5208]
[1744630401988,18.61649851,133.0,132.97,0.28432314]
[1744630402188,0.03,133.0,132.97,7.80432314]
[1744630402921,18.58649851,132.99,132.96,7.5207]
[1744630403227,11.60741911,132.99,132.96,7.5207]
[1744630403706,11.63741911,133.0,132.96,7.5207]
[1744630404620,11.63741911,133.0,132.96,19.12811911]
[1744630404932,0.03,133.0,132.99,0.14216157]
[1744630405113,0.03,133.0,132.99,11.74958068]
[1744630405321,0.03,133.0,132.99,0.28432314]
[1744630405499,0.03,133.0,132.98,0.28432314]
[1744630409053,0.063,133.03,133.02,56.54139111]
[1744630409216,0.063,133.03,133.02,30.54139111]
[1744630409420,0.063,133.03,133.02,0.28432314]
[1744630410149,0.063,133.03,133.02,11.89174225]
[1744630410345,0.063,133.03,133.02,12.03390382]
[1744630410749,0.063,133.03,133.02,19.55150382]
[1744630412323,0.063,133.03,133.02,38.20115268]
[1744630413541,0.063,133.03,133.02,49.80857179]
[1744630413848,0.063,133.03,133.02,132.40857179]
[1744630414659,0.063,133.03,133.02,120.80115268]
[1744630414838,0.063,133.03,133.02,123.57359109]
[1744630415357,0.03,133.06,133.05,12.03390382]
[1744630416956,0.03,133.06,133.03,11.74958068]
[1744630417157,0.03,133.06,133.04,7.5165]
[1744630418870,0.03,133.06,133.05,0.28432314]
[1744630419068,0.03,133.06,133.05,19.40764225]
[1744630419271,0.03,133.06,133.05,19.54980382]
[1744630419478,0.03,133.06,133.05,120.79945268]
[1744630419945,0.03,133.06,133.05,109.19203357]
[1744630420147,0.03,133.06,133.05,120.79945268]
[1744630421485,0.03,133.06,133.05,123.57696643]
[1744630421868,0.0001,133.06,133.05,123.57696643]
[1744630424457,0.0001,133.06,133.05,111.96954732]
[1744630424681,0.0001,133.06,133.05,92.89341375]
[1744630425089,0.0001,133.06,133.05,93.17773689]
[1744630425467,0.0001,133.06,133.05,7.80022314]
[1744630425859,0.0001,133.06,133.05,7.65806157]
[1744630426181,0.0001,133.06,133.05,0.28432314]
[1744630426497,0.0001,133.06,133.04,7.5162]
[1744630427097,0.0001,133.06,133.03,7.80112314]
[1744630427265,11.60751911,133.06,133.03,0.28432314]
[1744630427772,0.0001,133.06,133.03,0.28432314]
[1744630427974,0.0001,133.06,133.03,11.89174225]
[1744630428181,0.0001,133.06,133.04,11.60741911]
[1744630428380,0.0001,133.06,133.03,11.89174225]
[1744630429592,0.0001,133.06,133.04,7.5165]
[1744630430070,0.0001,133.06,133.05,12.03390382]
[1744630430394,0.0001,133.06,133.05,33.46528298]
[1744630430689,0.03,133.08,133.07,30.54139111]
[1744630430861,0.03,133.14,133.08,19.07613357]
[1744630431058,0.03,133.14,133.11,12.03390382]
[1744630431567,0.03,133.14,133.11,19.54640382]
[1744630431869,0.03,133.14,133.11,7.79682314]
[1744630432385,0.03,133.14,133.09,18.92576157]
[1744630432386,11.63741911,133.14,133.1,7.513]
[1744630433478,0.03,133.14,133.1,19.12041911]
[1744630433679,11.63741911,133.14,133.1,19.12041911]
[1744630434082,11.63741911,133.14,133.09,19.40534225]
[1744630434289,11.63741911,133.14,133.09,7.79792314]
[1744630434290,11.60741911,133.13,133.09,7.79792314]
[1744630434781,11.63741911,133.12,133.08,7.514]
[1744630434979,11.60741911,133.11,133.07,7.5147]
[1744630435176,0.03,133.12,133.07,7.5147]
[1744630435374,0.03,133.12,133.06,7.5151]
[1744630435375,11.60741911,133.09,133.06,7.5151]
[1744630436071,11.60741911,133.09,133.05,7.5157]
[1744630437188,11.60741911,133.07,133.03,11.60741911]
[1744630437375,11.60741911,133.07,133.03,7.5168]
[1744630438569,11.60741911,133.07,133.03,19.12421911]
[1744630439874,11.60741911,133.07,133.03,7.5168]
[1744630440290,1.0,133.05,133.01,0.28432314]
[1744630440509,1.0,133.05,133.03,11.60741911]
[1744630440999,1.0,133.05,133.01,0.28432314]
[1744630441178,1.0,133.04,133.0,11.60741911]
[1744630441701,12.60741911,133.05,133.0,11.60741911]
[1744630441873,1.0,133.04,133.01,2.78635518]
[1744630442673,1.0,133.02,133.01,2.78635518]
[1744630442881,1.0,133.02,132.99,7.519]
[1744630444096,1.0,133.02,132.99,19.12641911]
[1744630444991,1.0,133.02,132.99,7.519]
[1744630445191,12.60741911,133.01,132.97,12.03390382]
[1744630445504,8.34,133.03,132.95,11.60741911]
[1744630445505,1.0,132.99,132.95,11.60741911]
[1744630445886,1.0,132.99,132.96,11.60741911]
[1744630446082,12.60741911,133.0,132.96,11.60741911]
[1744630446281,12.60741911,133.0,132.95,19.12901911]
[1744630446282,1.0,132.99,132.95,19.12901911]
[1744630446591,1.0,132.99,132.96,2.78807143]
[1744630447114,20.94741911,132.98,132.97,2.78807143]
[1744630447398,9.34,132.98,132.97,2.78807143]
[1744630447977,1.0,132.97,132.95,19.12881911]
[1744630448377,1.0,132.97,132.95,7.5214]
[1744630448578,1.0,132.97,132.94,7.5219]
[1744630448788,1.0,132.96,132.94,7.5219]
[1744630449104,1.0,132.97,132.94,19.12931911]
[1744630449771,1.0,132.96,132.94,19.12931911]
[1744630450174,1.0,132.97,132.94,19.12931911]
[1744630450377,1.0,132.96,132.94,19.12931911]
[1744630450677,1.0,132.97,132.94,19.12931911]
[1744630450885,1.0,132.96,132.94,7.5219]
[1744630451880,12.60741911,132.96,132.93,7.5854]
[1744630452210,18.67831911,132.94,132.93,0.063]
[1744630452386,38.88276797,132.94,132.93,0.063]
[1744630452989,20.23311911,132.94,132.93,0.063]
[1744630453198,38.88276797,132.94,132.93,0.063]
[1744630453819,20.23311911,132.94,132.93,0.063]
[1744630454593,8.6257,132.94,132.93,0.063]
[1744630455198,234.44,132.97,132.94,0.42648471]
[1744630455514,234.44,132.97,132.96,11.60741911]
[1744630456205,234.44,132.97,132.96,19.12841911]
[1744630457287,234.44,132.97,132.96,26.08780777]
[1744630458310,234.44,132.97,132.96,26.51429248]
[1744630458519,8.34,132.98,132.97,0.42648471]
[1744630458811,8.34,132.98,132.97,18.99329248]
[1744630460510,8.34,132.98,132.97,26.51369248]
[1744630461319,8.34,132.98,132.96,7.5208]
[1744630461529,9.34,132.98,132.96,7.5208]
[1744630462020,8.34,132.98,132.97,0.42648471]
[1744630462585,8.34,132.98,132.97,7.94688471]
[1744630463018,8.34,132.98,132.97,7.5204]
[1744630463317,9.34,132.98,132.97,7.5204]
[1744630463526,9.34,132.98,132.96,26.08750777]
[1744630463705,8.34,132.98,132.96,26.08750777]
[1744630464718,9.34,132.98,132.96,26.08750777]
[1744630464924,8.34,132.98,132.96,26.08750777]
[1744630465624,1.0,132.97,132.93,0.063]
[1744630465829,1.0,132.95,132.93,0.063]
[1744630466129,1.0,132.94,132.93,0.063]
[1744630467035,27.08890777,132.94,132.93,0.063]
[1744630467526,27.08890777,132.94,132.84,108.87989307]
[1744630467527,1.0,132.88,132.84,7.66996157]
[1744630467828,9.32,132.88,132.85,0.08]
[1744630468034,27.88680777,132.88,132.85,0.08]
[1744630468231,1.0,132.86,132.85,0.08]
[1744630468439,19.56680777,132.86,132.85,0.08]
[1744630468735,1.0,132.85,132.83,7.5282]
[1744630469536,9.32,132.88,132.84,18.99329248]
[1744630469736,1.0,132.87,132.85,18.56680777]
[1744630470030,8.32,132.88,132.86,18.56680777]
[1744630470253,9.32,132.88,132.86,18.56680777]
[1744630470423,18.64964886,132.92,132.88,0.14216157]
[1744630470424,1.0,132.92,132.88,0.14216157]
[1744630470624,8.34,132.91,132.9,18.56680777]
[1744630470827,8.34,132.91,132.9,26.09120777]
[1744630471637,8.34,132.91,132.9,26.51769248]
[1744630473517,8.34,132.93,132.91,0.42648471]
[1744630473722,8.34,132.93,132.9,63.89560025]
[1744630473723,9.34,132.93,132.92,18.99329248]
[1744630474132,9.34,132.93,132.92,18.56680777]
[1744630474320,9.34,132.93,132.91,18.56680777]
[1744630474631,8.34,132.93,132.92,18.56680777]
[1744630475009,8.34,132.93,132.92,26.09010777]
[1744630475239,9.34,132.93,132.92,26.09010777]
[1744630476634,8.34,132.93,132.92,26.09010777]
[1744630476813,9.34,132.93,132.92,26.09010777]
[1744630477130,8.34,132.93,132.92,26.09010777]
[1744630477440,9.34,132.93,132.92,7.5233]
[1744630477618,9.34,132.93,132.92,26.09010777]
[1744630477934,8.34,132.93,132.92,26.51659248]
[1744630479013,8.34,132.93,132.92,26.09010777]
[1744630479719,8.34,132.93,132.92,26.09010777]
[1744630479925,8.34,132.93,132.92,26.51659248]
[1744630480127,234.5,132.94,132.92,26.51659248]
[1744630480425,234.5,132.94,132.93,18.56680777]
[1744630480836,234.5,132.94,132.93,26.08950777]
[1744630482743,235.5,132.94,132.92,7.5231]
[1744630483451,235.5,132.94,132.92,19.13661295]
[1744630483751,234.5,132.94,132.92,19.13661295]
[1744630483944,235.5,132.94,132.92,19.13661295]
[1744630484638,234.5,132.94,132.92,19.13661295]
[1744630484840,235.5,132.94,132.92,19.13661295]
[1744630485257,235.5,132.94,132.92,18.57960566]
[1744630485542,235.5,132.94,132.93,19.00609037]
[1744630485543,234.5,132.94,132.93,19.00609037]
[1744630485753,9.34,132.95,132.93,19.00609037]
[1744630485947,9.34,132.95,132.94,18.72176723]
[1744630486455,9.34,132.95,132.94,21.51016897]
[1744630487461,9.34,132.95,132.94,29.03226897]
[1744630487624,8.34,132.95,132.94,29.03226897]
[1744630487825,8.34,132.95,132.94,29.31659211]
[1744630488325,8.34,132.99,132.95,0.28432314]
[1744630488551,9.34,132.99,132.95,0.28432314]
[1744630488737,9.34,132.99,132.97,18.57960566]
[1744630489145,9.34,132.99,132.98,0.28432314]
[1744630489355,8.34,132.99,132.98,19.00609037]
[1744630489561,8.34,132.99,132.98,26.52599037]
[1744630489767,8.34,132.99,132.98,29.31608324]
[1744630490139,8.34,132.99,132.98,10.59431601]
[1744630490467,9.34,132.99,132.98,2.79009287]
[1744630490637,9.34,132.99,132.97,7.5201]
[1744630491159,1.0,132.98,132.96,7.5208]
[1744630491535,1.0,132.98,132.97,0.28432314]
[1744630491740,1.0,132.98,132.97,18.8639288]
[1744630492660,8.34,132.99,132.98,0.14216157]
[1744630492859,8.34,132.99,132.98,18.72176723]
[1744630493961,8.34,132.99,132.98,29.03261847]
[1744630494262,8.34,132.99,132.98,29.31694161]
[1744630497364,8.34,132.99,132.98,10.73733595]
[1744630497683,8.34,132.99,132.98,29.31694161]
[1744630500169,0.03,133.0,132.98,29.31694161]
[1744630500170,0.03,133.0,132.99,0.28432314]
[1744630500378,0.03,133.02,133.0,0.14216157]
[1744630500671,0.03,133.02,133.01,26.3821288]
[1744630500875,0.03,133.02,133.01,10.59347438]
[1744630501176,0.03,133.02,133.01,2.79095124]
[1744630501556,0.03,133.02,133.01,10.30915124]
[1744630501756,1.03,133.02,133.01,2.79095124]
[1744630501955,1.03,133.02,132.99,7.5192]
[1744630502155,1.03,133.02,132.99,26.09880566]
[1744630502469,0.03,133.02,133.01,18.72176723]
[1744630502668,0.03,133.02,133.01,26.52429037]
[1744630502979,0.03,133.03,133.02,0.28432314]
[1744630503179,0.03,133.03,133.02,40.36900157]
[1744630504066,0.03,133.03,133.02,47.88660157]
[1744630505383,0.03,133.03,133.02,29.30699591]
[1744630505770,0.03,133.03,133.02,10.72739025]
[1744630505972,0.03,133.03,133.02,29.30699591]
[1744630506681,0.03,133.03,133.02,29.16483434]
[1744630506879,0.03,133.03,133.02,10.72739025]
[1744630507083,0.03,133.03,133.02,29.30699591]
[1744630507288,0.03,133.03,133.02,22.32092586]
[1744630507668,0.03,133.03,133.02,31.13115593]
[1744630507870,0.03,133.03,133.02,19.53762032]
[1744630508191,0.03,133.05,133.03,0.28432314]
[1744630508374,0.03,133.05,133.04,12.02002032]
[1744630509793,0.03,133.05,133.04,0.42648471]
[1744630510776,0.03,133.05,133.04,19.53652032]
[1744630512372,0.03,133.05,133.04,7.65866157]
[1744630512691,0.03,133.05,133.04,7.94298471]
[1744630513794,0.03,133.05,133.0,7.5187]
[1744630513990,0.03,133.05,133.01,0.08]
[1744630513991,11.59353561,133.03,133.01,0.08]
[1744630514169,11.59353561,133.03,132.92,6.0843]
[1744630514170,1.0,132.99,132.95,0.14216157]
[1744630514499,12.59353561,132.98,132.94,7.5221]
[1744630514697,12.59353561,132.96,132.93,7.5855]
[1744630515267,12.59353561,132.96,132.93,7.5857]
[1744630515492,1.0,132.96,132.93,7.5857]
[1744630515672,12.59353561,132.96,132.93,0.063]
[1744630515873,12.59353561,132.96,132.93,7.5857]
[1744630516376,11.59353561,132.95,132.93,0.063]
[1744630516600,12.59353561,132.94,132.93,0.063]
[1744630516785,20.77943561,132.94,132.93,0.063]
[1744630516966,9.1859,132.94,132.93,0.063]
[1744630517171,1.0,132.94,132.93,0.063]
[1744630517395,1.0,132.94,132.93,18.64594834]
[1744630517702,1.0,132.96,132.94,0.14216157]
[1744630518205,1.0,132.95,132.94,0.14216157]
[1744630518505,1.0,132.95,132.94,0.28432314]
[1744630518806,1.0,132.95,132.94,7.80642314]
[1744630519097,1.0,132.96,132.94,7.80642314]
[1744630519298,14.8833,132.97,132.96,0.28432314]
[1744630519606,9.3,132.97,132.96,0.28432314]
[1744630520274,8.3,132.97,132.96,19.00943305]
[1744630520491,8.3,132.97,132.96,26.53043305]
[1744630522688,8.3,132.97,132.96,7.94748471]
[1744630522888,8.3,132.97,132.96,26.53043305]
[1744630523313,8.3,132.97,132.96,7.94748471]
[1744630523509,8.3,132.97,132.96,7.80532314]
[1744630525109,8.3,132.97,132.96,26.38827148]
[1744630525313,8.3,132.97,132.96,7.80532314]
[1744630526213,8.3,132.97,132.96,26.38827148]
[1744630527230,8.3,132.97,132.96,7.80532314]
[1744630527697,8.3,132.97,132.96,26.38827148]
[1744630528019,8.3,132.97,132.96,26.53043305]
[1744630528223,9.28,133.01,132.97,0.14216157]
[1744630528397,8.28,133.01,133.0,18.72510991]
[1744630529822,8.28,133.01,133.0,26.52813305]
[1744630530028,10.9657,133.05,133.01,0.42648471]
[1744630530229,9.31,133.05,133.04,0.28432314]
[1744630531820,8.31,133.05,133.04,7.80082314]
[1744630531997,8.31,133.05,133.04,26.52593305]
[1744630533529,8.31,133.05,133.04,0.14216157]
[1744630533717,8.31,133.05,133.03,26.09974834]
[1744630534128,8.31,133.05,133.04,0.14216157]
[1744630535828,8.31,133.05,133.04,7.80082314]
[1744630536127,8.31,133.05,133.04,26.52593305]
[1744630537229,8.31,133.05,133.04,0.28432314]
[1744630537643,8.31,133.05,133.04,7.80082314]
[1744630538019,8.31,133.05,133.04,19.39377438]
[1744630540947,9.31,133.05,133.04,0.28432314]
[1744630541447,9.31,133.05,133.04,11.87727438]
[1744630542457,9.31,133.05,133.04,11.59295124]
[1744630542652,9.31,133.05,133.04,11.87727438]
[1744630542955,9.31,133.05,133.04,19.39377438]
[1744630543457,9.0211077,133.05,133.04,19.39377438]
[1744630544154,9.0211077,133.05,133.04,0.28432314]
[1744630544358,1.0,133.03,132.99,18.798]
[1744630544562,1.0,133.04,133.03,0.28432314]
[1744630544730,9.0211077,133.05,133.03,12.01943595]
[1744630544934,9.0211077,133.05,133.04,7.80082314]
[1744630546136,8.0211077,133.05,133.04,7.80082314]
[1744630546343,9.0211077,133.05,133.04,7.80082314]
[1744630549636,8.0211077,133.05,133.04,7.80082314]
[1744630552160,8.0211077,133.05,133.04,19.53593595]
[1744630554058,8.0211077,133.05,133.04,7.94298471]
[1744630554268,8.0211077,133.05,133.04,7.80082314]
[1744630555132,8.0211077,133.05,133.04,19.39377438]
[1744630556067,8.0211077,133.05,133.04,19.53593595]
[1744630557873,8.0211077,133.05,133.04,7.94298471]
[1744630559866,8.0211077,133.05,133.04,19.53593595]
[1744630560169,8.0211077,133.05,133.04,7.94298471]
[1744630560567,8.0211077,133.05,133.04,19.53593595]
[1744630560757,0.03,133.08,133.05,0.42648471]
[1744630561068,0.03,133.08,133.07,11.73511281]
[1744630561473,1.03,133.08,133.07,11.73511281]
[1744630561774,0.03,133.08,133.07,19.24991281]
[1744630561971,1.03,133.08,133.07,19.24991281]
[1744630562148,1.03,133.08,133.07,0.28432314]
[1744630562881,1.03,133.08,133.07,7.79912314]
[1744630564574,0.03,133.08,133.07,7.79912314]
[1744630564761,1.03,133.08,133.07,7.79912314]
[1744630565075,1.03,133.08,133.05,0.14216157]
[1744630565076,1.0,133.07,133.03,7.94358471]
[1744630565260,1.0,133.06,133.03,7.65926157]
[1744630565444,1.0,133.06,133.05,0.28432314]
[1744630566274,1.0,133.07,133.05,0.42648471]
[1744630566462,1.0,133.07,133.06,7.79972314]
[1744630566649,1.03,133.08,133.06,7.79972314]
[1744630567477,1.0,133.07,133.06,7.79972314]
[1744630567679,1.03,133.08,133.06,7.79972314]
[1744630568472,0.03,133.08,133.07,11.87727438]
[1744630568681,1.03,133.08,133.07,11.87727438]
[1744630569175,0.03,133.08,133.07,11.87727438]
[1744630570579,0.03,133.08,133.07,19.53423595]
[1744630575281,0.03,133.08,133.07,15.35403504]
[1744630581108,0.0001,133.11,133.1,26.14216157]